[Event "EYCC Open-U14 2019"]
[Site "Bratislava"]
[Date "2019.08.09"]
[Round "8.3"]
[White "Kirillov, Dmitry"]
[Black "Can, Isik"]
[Result "1/2-1/2"]
[ECO "C77"]
[WhiteElo "2244"]
[BlackElo "2374"]
[Annotator "NA"]
[PlyCount "113"]
[EventDate "2019.08.02"]
[EventType "swiss"]
[EventCountry "SVK"]
[SourceTitle "playchess.com"]
[Source "ChessBase"]
[SourceQuality "1"]
[TimeControl "40/5400+30:1800+30"]

1. e4 {[%emt 0:00:00]} e5 {[%emt 0:00:00]} 2. Nf3 {[%emt 0:00:00]} Nc6 {[%emt 0:00:00]} 3. Bb5 {[%emt 0:00:00]} a6 {[%emt 0:00:00]} 4. Ba4 {[%emt 0:00:00]} Nf6 {[%emt 0:00:00]} 5. d3 {[%emt 0:00:00]} d6 {[%emt 0:00:00]} 6. a3 {[%emt 0:00:20]} g6 {[%emt 0:00:00]} 7. O-O {[%emt 0:04:05]} Bg7 {[%emt 0:00:05]} 8. Nc3 {[%emt 0:10:33]} O-O {[%emt 0:01:48]} 9. h3 {[%emt 0:02:42]} Nd7 {[%emt 0:18:43]} 10. Bb3 {[%emt 0:01:19]} Nc5 {[%emt 0:03:04]} 11. Ba2 {[%emt 0:02:30]} Be6 {[%emt 0:00:49]} 12. Nd5 {[%emt 0:02:58]} Nd4 {[%emt 0:09:22]} 13. b4 {[%emt 0:17:59]} Na4 {[%emt 0:07:06]} 14. Nxd4 {[%emt 0:10:53]} exd4 {[%emt 0:02:08]} 15. c4 {[%emt 0:01:21]} b5 {[%emt 0:13:18]} 16. Qc2 {[%emt 0:03:02]} Bxd5 {[%emt 0:07:44]} 17. cxd5 {[%emt 0:01:36]} f5 {[%emt 0:04:15]} 18. Bd2 {[%emt 0:06:54]} Nc3 {[%emt 0:07:15]} 19. Rae1 {[%emt 0:02:34]} f4 {[%emt 0:02:07]} 20. g3 {[%emt 0:00:29]} Be5 {[%emt 0:02:59]} 21. f3 {[%emt 0:02:10]} Rb8 {[%emt 0:02:24]} 22. Bb3 {[%emt 0:00:30]} h5 {[%emt 0:00:33]} 23. Bc1 {[%emt 0:01:31]} Qg5 {[%emt 0:03:21]} 24. Qg2 Qh4 25. g4 hxg4 {[%emt 0:03:36]} 26. Qxg4 {[%emt 0:02:08]} Qh7 {[%emt 0:01:46]} 27. Rf2 {[%emt 0:01:10]} Rf6 {[%emt 0:05:08]} 28. Rh2 {[%emt 0:00:10]} Kf8 {[%emt 0:01:09]} 29. Kh1 {[%emt 0:00:04]} Ke7 {[%emt 0:00:33]} 30. Bd2 {[%emt 0:00:07]} Rg8 {[%emt 0:01:55]} 31. Bxc3 {[%emt 0:02:12]} dxc3 {[%emt 0:00:04]} 32. Qg1 {[%emt 0:00:08]} Rff8 {[%emt 0:01:09]} 33. Qa7 {[%emt 0:10:59]} Qh4 {[%emt 0:00:35]} 34. Rg1 {[%emt 0:00:21]} Rc8 {[%emt 0:01:00]} 35. d4 {[%emt 0:00:04]} Bh8 {[%emt 0:00:55]} 36. e5 {[%emt 0:00:06]} Rgd8 {[%emt 0:01:03]} 37. Qxa6 {[%emt 0:03:57]} Qh5 {[%emt 0:01:23]} 38. Rg4 {[%emt 0:00:58]} Qf5 {[%emt 0:00:34]} 39. Bc2 {[%emt 0:00:27]} Qf7 {[%emt 0:00:01]} 40. Be4 {[%emt 0:10:33]} dxe5 {[%emt 0:00:36]} 41. Rxg6 {[%emt 0:00:56]} exd4 {[%emt 0:00:32]} 42. Qxb5 {[%emt 0:02:15]} Bf6 {[%emt 0:03:05]} 43. Qc5+ {[%emt 0:07:54]} Rd6 {[%emt 0:00:10]} 44. Bf5 {[%emt 0:00:32]} Qxd5 {[%emt 0:10:57]} 45. Bxc8 {[%emt 0:07:53]} Qxc5 {[%emt 0:00:35]} 46. bxc5 {[%emt 0:00:51]} Rd8 {[%emt 0:00:01]} 47. Bf5 {[%emt 0:07:55]} d3 {[%emt 0:00:01]} 48. Rg1 {[%emt 0:00:53]} Bd4 49. Rd1 {[%emt 0:01:24]} c2 {[%emt 0:05:37]} 50. Rxc2 {[%emt 0:03:25]} dxc2 {[%emt 0:00:02]} 51. Bxc2 {[%emt 0:00:07]} Ke6 {[%emt 0:01:11]} 52. Be4 {[%emt 0:00:41]} Ke5 {[%emt 0:00:20]} 53. Rd2 {[%emt 0:01:13]} Rb8 {[%emt 0:04:39]} 54. c6 {[%emt 0:00:20]} Ra8 {[%emt 0:01:22]} 55. Rd3 {[%emt 0:00:21]} Rg8 {[%emt 0:00:55]} 56. Rb3 {[%emt 0:01:59]} Bc5 {[%emt 0:04:22]} 57. Rd3 {[%emt 0:03:01]} 1/2-1/2

[Event "EYCC Open-U14 2019"]
[Site "Bratislava"]
[Date "2019.08.09"]
[Round "8.4"]
[White "Krastev, Alexander"]
[Black "Tadic, Stefan"]
[Result "1/2-1/2"]
[ECO "B29"]
[WhiteElo "2325"]
[BlackElo "2262"]
[Annotator "NA"]
[PlyCount "109"]
[EventDate "2019.08.02"]
[EventType "swiss"]
[EventCountry "SVK"]
[SourceTitle "playchess.com"]
[Source "ChessBase"]
[SourceQuality "1"]
[TimeControl "40/5400+30:1800+30"]

1. e4 {[%emt 0:00:00]} c5 {[%emt 0:00:00]} 2. Nf3 {[%emt 0:00:00]} Nf6 {[%emt 0:00:00]} 3. e5 {[%emt 0:05:48]} Nd5 {[%emt 0:00:00]} 4. Nc3 {[%emt 0:00:08]} Nxc3 {[%emt 0:00:00]} 5. dxc3 {[%emt 0:00:10]} e6 {[%emt 0:00:47]} 6. Bf4 {[%emt 0:02:12]} Qb6 {[%emt 0:00:48]} 7. b3 {[%emt 0:01:46]} Nc6 {[%emt 0:01:32]} 8. Bd3 {[%emt 0:11:23]} Qc7 {[%emt 0:00:58]} 9. O-O {[%emt 0:07:47]} h6 {[%emt 0:01:11]} 10. Qe2 {[%emt 0:02:11]} b6 {[%emt 0:07:30]} 11. Nd2 {[%emt 0:10:28]} Ne7 {[%emt 0:29:13]} 12. Bg3 {[%emt 0:06:17]} Bb7 {[%emt 0:03:27]} 13. a4 {[%emt 0:00:17]} Nd5 {[%emt 0:06:11]} 14. Ne4 {[%emt 0:04:56]} Be7 {[%emt 0:05:17]} 15. a5 {[%emt 0:07:58]} bxa5 {[%emt 0:05:46]} 16. Ra2 {[%emt 0:00:41]} Qb6 {[%emt 0:09:37]} 17. Rfa1 {[%emt 0:04:58]} O-O {[%emt 0:02:26]} 18. Rxa5 {[%emt 0:04:01]} f5 {[%emt 0:00:55]} 19. exf6 {[%emt 0:01:17]} Nxf6 {[%emt 0:01:01]} 20. c4 {[%emt 0:08:52]} Qc6 {[%emt 0:07:01]} 21. Re1 {[%emt 0:00:40]} a6 {[%emt 0:03:17]} 22. Be5 {[%emt 0:04:58]} d6 {[%emt 0:02:39]} 23. Bb2 {[%emt 0:03:06]} Rae8 {[%emt 0:00:36]} 24. Raa1 {[%emt 0:03:45]} Qc7 {[%emt 0:05:22]} 25. Nxf6+ {[%emt 0:04:08]} Bxf6 {[%emt 0:00:01]} 26. Bxf6 {[%emt 0:00:06]} Rxf6 {[%emt 0:00:05]} 27. Be4 {[%emt 0:00:48]} Ref8 {[%emt 0:00:36]} 28. Bxb7 {[%emt 0:00:39]} Qxb7 {[%emt 0:00:01]} 29. f3 {[%emt 0:00:24]} d5 {[%emt 0:03:56]} 30. Ra5 {[%emt 0:02:09]} Rc8 {[%emt 0:01:45]} 31. Rea1 Rc6 {[%emt 0:00:11]} 32. R5a4 {[%emt 0:01:49]} d4 {[%emt 0:02:14]} 33. Qe4 {[%emt 0:00:33]} Qc8 {[%emt 0:00:18]} 34. Ra5 {[%emt 0:02:01]} Rf8 {[%emt 0:01:15]} 35. Qd3 {[%emt 0:00:34]} Rf5 {[%emt 0:00:57]} 36. Re1 {[%emt 0:00:36]} Qc7 {[%emt 0:00:15]} 37. Raa1 {[%emt 0:00:13]} Rh5 {[%emt 0:00:39]} 38. g3 {[%emt 0:00:13]} Rg5 {[%emt 0:00:31]} 39. Kg2 {[%emt 0:00:43]} Qf7 {[%emt 0:00:38]} 40. Qe4 {[%emt 0:00:00]} Qc7 {[%emt 0:00:00]} 41. g4 {[%emt 0:07:51]} Kf7 {[%emt 0:03:56]} 42. h4 {[%emt 0:07:48]} Rg6 {[%emt 0:00:04]} 43. Qe5 {[%emt 0:00:09]} Qe7 {[%emt 0:10:41]} 44. Qh5 {[%emt 0:01:18]} Qd6 {[%emt 0:01:24]} 45. f4 {[%emt 0:08:33]} Rb6 {[%emt 0:04:07]} 46. Rad1 {[%emt 0:01:30]} a5 {[%emt 0:00:52]} 47. Rd3 {[%emt 0:06:53]} a4 {[%emt 0:00:17]} 48. Ra1 {[%emt 0:00:50]} Qc6+ {[%emt 0:04:24]} 49. Kg3 {[%emt 0:00:29]} axb3 {[%emt 0:00:54]} 50. Ra7+ {[%emt 0:00:30]} Rb7 {[%emt 0:00:01]} 51. Rxb7+ Qxb7 {[%emt 0:00:04]} 52. cxb3 {[%emt 0:01:03]} Qe4 {[%emt 0:00:18]} 53. Rf3 {[%emt 0:00:05]} Qe1+ {[%emt 0:01:11]} 54. Kh3 {[%emt 0:00:27]} Qh1+ {[%emt 0:03:58]} 55. Kg3 {[%emt 0:00:05]} 1/2-1/2

[Event "EYCC Open-U14 2019"]
[Site "Bratislava"]
[Date "2019.08.09"]
[Round "8.5"]
[White "Mitusov, Semen"]
[Black "Makoveev, Ilya"]
[Result "1/2-1/2"]
[ECO "B22"]
[WhiteElo "2199"]
[BlackElo "2288"]
[Annotator "NA"]
[PlyCount "60"]
[EventDate "2019.08.02"]
[EventType "swiss"]
[EventCountry "SVK"]
[SourceTitle "playchess.com"]
[Source "ChessBase"]
[SourceQuality "1"]
[TimeControl "40/5400+30:1800+30"]

1. e4 {[%emt 0:00:00]} c5 {[%emt 0:00:00]} 2. c3 {[%emt 0:00:00]} Nf6 {[%emt 0:00:50]} 3. e5 {[%emt 0:00:29]} Nd5 {[%emt 0:00:10]} 4. d4 {[%emt 0:00:03]} cxd4 {[%emt 0:00:40]} 5. cxd4 {[%emt 0:00:07]} d6 {[%emt 0:01:05]} 6. Nf3 {[%emt 0:03:10]} Nc6 {[%emt 0:00:30]} 7. Bc4 {[%emt 0:00:55]} Nb6 {[%emt 0:00:43]} 8. Bb3 {[%emt 0:00:36]} dxe5 {[%emt 0:01:02]} 9. Nxe5 {[%emt 0:01:22]} e6 {[%emt 0:07:08]} 10. Nxc6 {[%emt 0:05:52]} bxc6 {[%emt 0:00:02]} 11. O-O {[%emt 0:01:00]} Be7 {[%emt 0:08:54]} 12. Nc3 {[%emt 0:07:35]} O-O {[%emt 0:03:43]} 13. Be3 {[%emt 0:11:10]} a5 {[%emt 0:16:34]} 14. Rc1 {[%emt 0:09:05]} Ba6 {[%emt 0:01:45]} 15. Re1 {[%emt 0:01:47]} Nc4 {[%emt 0:05:10]} 16. Bxc4 {[%emt 0:08:53]} Bxc4 {[%emt 0:01:13]} 17. Qa4 {[%emt 0:01:08]} Bd5 {[%emt 0:02:58]} 18. Nxd5 {[%emt 0:03:47]} cxd5 {[%emt 0:00:23]} 19. Rc2 {[%emt 0:00:07]} Bd6 {[%emt 0:09:11]} 20. a3 {[%emt 0:07:35]} Qh4 {[%emt 0:07:37]} 21. g3 {[%emt 0:02:09]} Qe7 {[%emt 0:05:25]} 22. Qc6 {[%emt 0:09:49]} Rfd8 {[%emt 0:08:45]} 23. Rec1 {[%emt 0:01:46]} a4 {[%emt 0:01:51]} 24. Kg2 {[%emt 0:06:22]} h6 {[%emt 0:00:50]} 25. Kg1 {[%emt 0:01:08]} Kh7 {[%emt 0:00:20]} 26. Kg2 {[%emt 0:00:45]} Qa7 {[%emt 0:11:08]} 27. Qb5 {[%emt 0:02:49]} Rab8 {[%emt 0:00:34]} 28. Qd3+ {[%emt 0:00:00]} Kg8 {[%emt 0:00:13]} 29. Qd2 {[%emt 0:00:43]} Qb7 {[%emt 0:02:49]} 30. Bf4 {[%emt 0:01:16]} Qe7 {[%emt 0:02:25]} 1/2-1/2

[Event "EYCC Open-U14 2019"]
[Site "Bratislava"]
[Date "2019.08.09"]
[Round "8.6"]
[White "Chyzy, Jakub"]
[Black "Antonica, Dragos-Andrei"]
[Result "1/2-1/2"]
[ECO "C16"]
[WhiteElo "2093"]
[BlackElo "2124"]
[Annotator "NA"]
[PlyCount "101"]
[EventDate "2019.08.02"]
[EventType "swiss"]
[EventCountry "SVK"]
[SourceTitle "playchess.com"]
[Source "ChessBase"]
[SourceQuality "1"]
[TimeControl "40/5400+30:1800+30"]

1. e4 {[%emt 0:00:00]} e6 {[%emt 0:00:00]} 2. d4 {[%emt 0:00:00]} d5 {[%emt 0:00:00]} 3. Nc3 {[%emt 0:00:00]} Bb4 {[%emt 0:00:00]} 4. e5 {[%emt 0:00:00]} b6 {[%emt 0:00:35]} 5. Bd2 {[%emt 0:00:00]} a5 {[%emt 0:07:03]} 6. a3 {[%emt 0:04:28]} Bf8 {[%emt 0:00:26]} 7. Bb5+ {[%emt 0:03:52]} c6 {[%emt 0:02:27]} 8. Ba4 {[%emt 0:03:10]} Ne7 {[%emt 0:14:18]} 9. Nce2 {[%emt 0:01:57]} Ba6 {[%emt 0:00:23]} 10. c3 {[%emt 0:00:22]} Bd3 {[%emt 0:04:42]} 11. Ng3 {[%emt 0:14:19]} Bg6 {[%emt 0:16:38]} 12. N1e2 {[%emt 0:01:20]} Nf5 {[%emt 0:01:02]} 13. Nf4 {[%emt 0:10:09]} Be7 {[%emt 0:08:22]} 14. Bc2 {[%emt 0:09:05]} Nh4 {[%emt 0:05:35]} 15. O-O {[%emt 0:02:34]} Bg5 {[%emt 0:02:37]} 16. Nfh5 {[%emt 0:07:35]} Bxd2 {[%emt 0:07:35]} 17. Qxd2 {[%emt 0:00:08]} O-O {[%emt 0:00:16]} 18. f4 {[%emt 0:04:31]} Nd7 {[%emt 0:07:12]} 19. f5 {[%emt 0:12:45]} Nxf5 {[%emt 0:02:47]} 20. Bxf5 {[%emt 0:00:38]} exf5 {[%emt 0:00:54]} 21. Nf4 {[%emt 0:00:32]} Re8 {[%emt 0:01:48]} 22. Rae1 {[%emt 0:01:25]} Nf8 {[%emt 0:06:54]} 23. Nd3 {[%emt 0:05:18]} Qd7 {[%emt 0:01:32]} 24. Qf2 {[%emt 0:01:58]} Ra7 {[%emt 0:03:50]} 25. h4 {[%emt 0:02:21]} h6 {[%emt 0:00:44]} 26. Re3 {[%emt 0:01:21]} Bh7 {[%emt 0:02:11]} 27. Rf3 {[%emt 0:08:45]} f4 {[%emt 0:02:14]} 28. Nxf4 {[%emt 0:00:26]} Ng6 {[%emt 0:00:48]} 29. Nxg6 {[%emt 0:03:37]} Bxg6 {[%emt 0:00:01]} 30. h5 {[%emt 0:00:16]} Bh7 {[%emt 0:00:00]} 31. Nf5 {[%emt 0:01:50]} Bxf5 {[%emt 0:00:37]} 32. Rxf5 {[%emt 0:00:01]} Re6 {[%emt 0:00:50]} 33. Qg3 {[%emt 0:00:50]} Qe7 {[%emt 0:00:47]} 34. R5f4 {[%emt 0:00:49]} Qf8 {[%emt 0:00:41]} 35. Rg4 {[%emt 0:00:19]} Kh8 {[%emt 0:00:29]} 36. Rg6 {[%emt 0:00:42]} Rae7 {[%emt 0:00:30]} 37. Qg4 {[%emt 0:00:27]} Qg8 {[%emt 0:00:37]} 38. Rxe6 {[%emt 0:00:33]} Rxe6 {[%emt 0:00:09]} 39. Qf5 {[%emt 0:00:25]} f6 {[%emt 0:00:49]} 40. exf6 {[%emt 0:00:00]} Rxf6 {[%emt 0:00:00]} 41. Qe5 {[%emt 0:03:53]} Rxf1+ {[%emt 0:04:28]} 42. Kxf1 {[%emt 0:00:01]} Qc8 {[%emt 0:02:32]} 43. Kf2 {[%emt 0:02:08]} Kh7 {[%emt 0:01:38]} 44. Kg3 {[%emt 0:00:56]} Kh8 {[%emt 0:04:13]} 45. Kf4 {[%emt 0:03:31]} Qf8+ {[%emt 0:02:36]} 46. Qf5 {[%emt 0:00:45]} Qd6+ {[%emt 0:01:10]} 47. Qe5 {[%emt 0:00:27]} Qf8+ {[%emt 0:00:22]} 48. Qf5 {[%emt 0:00:56]} Qd6+ {[%emt 0:00:04]} 49. Kf3 {[%emt 0:00:11]} Qd8 {[%emt 0:00:10]} 50. Qe6 {[%emt 0:09:28]} Qg5 {[%emt 0:04:46]} 51. g4 {[%emt 0:11:31]} 1/2-1/2

[Event "EYCC Open-U14 2019"]
[Site "Bratislava"]
[Date "2019.08.09"]
[Round "8.7"]
[White "Biletskiy, Danylo"]
[Black "Morgunov, Marc"]
[Result "1-0"]
[ECO "C47"]
[WhiteElo "2105"]
[BlackElo "2314"]
[Annotator "NA"]
[PlyCount "147"]
[EventDate "2019.08.02"]
[EventType "swiss"]
[EventCountry "SVK"]
[SourceTitle "playchess.com"]
[Source "ChessBase"]
[SourceQuality "1"]
[TimeControl "40/5400+30:1800+30"]

1. e4 {[%emt 0:00:00]} e5 {[%emt 0:00:07]} 2. Nf3 {[%emt 0:00:00]} Nc6 {[%emt 0:00:27]} 3. Nc3 {[%emt 0:00:00]} Nf6 {[%emt 0:00:16]} 4. d4 {[%emt 0:00:03]} exd4 {[%emt 0:00:04]} 5. Nxd4 {[%emt 0:00:02]} Bb4 {[%emt 0:00:13]} 6. Nxc6 {[%emt 0:00:07]} bxc6 {[%emt 0:00:04]} 7. Bd3 {[%emt 0:00:04]} d5 {[%emt 0:00:17]} 8. exd5 {[%emt 0:00:10]} cxd5 {[%emt 0:00:04]} 9. O-O {[%emt 0:00:04]} O-O {[%emt 0:00:05]} 10. h3 {[%emt 0:00:17]} c6 {[%emt 0:01:43]} 11. Qf3 {[%emt 0:00:23]} Bd6 {[%emt 0:04:30]} 12. Bf4 {[%emt 0:05:20]} Rb8 {[%emt 0:02:09]} 13. b3 {[%emt 0:03:53]} Qc7 {[%emt 0:06:48]} 14. Bxd6 {[%emt 0:03:08]} Qxd6 {[%emt 0:00:05]} 15. Rfe1 {[%emt 0:07:38]} Bd7 {[%emt 0:08:35]} 16. Qg3 {[%emt 0:07:34]} Qxg3 {[%emt 0:06:25]} 17. fxg3 {[%emt 0:00:02]} c5 {[%emt 0:00:42]} 18. Re7 {[%emt 0:00:27]} Rfd8 {[%emt 0:07:38]} 19. g4 {[%emt 0:03:39]} h6 {[%emt 0:07:42]} 20. Bf5 {[%emt 0:03:52]} Kf8 {[%emt 0:01:03]} 21. Rae1 {[%emt 0:00:45]} Bxf5 {[%emt 0:02:19]} 22. gxf5 {[%emt 0:00:02]} d4 {[%emt 0:17:18]} 23. Na4 {[%emt 0:00:11]} Nd7 {[%emt 0:00:13]} 24. Kf2 {[%emt 0:09:43]} c4 {[%emt 0:05:13]} 25. Nb2 {[%emt 0:21:23]} d3 {[%emt 0:01:07]} 26. Nxc4 {[%emt 0:00:27]} Nc5 {[%emt 0:00:20]} 27. Rc7 {[%emt 0:00:19]} Rd5 {[%emt 0:13:19]} 28. Kg1 {[%emt 0:07:17]} Rxf5 {[%emt 0:05:58]} 29. cxd3 {[%emt 0:00:07]} Nxd3 {[%emt 0:00:07]} 30. Re3 {[%emt 0:00:48]} Nf4 {[%emt 0:05:56]} 31. Rf3 {[%emt 0:05:52]} a6 {[%emt 0:01:33]} 32. Nd6 {[%emt 0:00:45]} Rf6 {[%emt 0:01:06]} 33. Rxf7+ {[%emt 0:00:30]} Rxf7 {[%emt 0:00:05]} 34. Nxf7 {[%emt 0:00:04]} Kxf7 {[%emt 0:02:28]} 35. Rxf4+ {[%emt 0:00:02]} Ke6 {[%emt 0:00:13]} 36. Ra4 {[%emt 0:00:08]} Rb6 {[%emt 0:00:07]} 37. Ra5 {[%emt 0:00:09]} Kd7 {[%emt 0:00:21]} 38. Kf2 {[%emt 0:00:33]} Re6 {[%emt 0:00:17]} 39. Kf3 {[%emt 0:00:44]} Kc7 {[%emt 0:00:12]} 40. b4 {[%emt 0:00:00]} Kb6 {[%emt 0:00:00]} 41. a4 {[%emt 0:05:08]} Rf6+ {[%emt 0:04:01]} 42. Kg3 {[%emt 0:04:35]} Rg6+ {[%emt 0:00:32]} 43. Kh2 {[%emt 0:00:24]} Rf6 {[%emt 0:06:46]} 44. Re5 {[%emt 0:00:14]} Kc6 {[%emt 0:00:47]} 45. Kg3 {[%emt 0:00:39]} Kd6 {[%emt 0:01:25]} 46. Ra5 {[%emt 0:01:06]} Ke7 {[%emt 0:00:41]} 47. Kg4 {[%emt 0:00:20]} Rd6 {[%emt 0:01:07]} 48. Kf5 {[%emt 0:01:12]} g6+ {[%emt 0:01:35]} 49. Ke5 {[%emt 0:01:06]} Rb6 {[%emt 0:00:06]} 50. b5 {[%emt 0:02:07]} axb5 {[%emt 0:00:12]} 51. axb5 {[%emt 0:01:15]} Re6+ {[%emt 0:00:18]} 52. Kd5 {[%emt 0:00:55]} Re2 {[%emt 0:00:05]} 53. b6 {[%emt 0:00:15]} Kd7 {[%emt 0:00:57]} 54. Ra7+ {[%emt 0:01:00]} Kc8 {[%emt 0:00:12]} 55. g4 {[%emt 0:02:02]} Re3 {[%emt 0:02:17]} 56. h4 {[%emt 0:00:05]} Rg3 {[%emt 0:00:27]} 57. g5 {[%emt 0:00:35]} hxg5 {[%emt 0:01:09]} 58. hxg5 {[%emt 0:00:01]} Rb3 {[%emt 0:00:26]} 59. Kc6 {[%emt 0:05:11]} Rc3+ {[%emt 0:00:35]} 60. Kd6 {[%emt 0:00:46]} Rb3 {[%emt 0:03:20]} 61. Rc7+ {[%emt 0:02:34]} Kb8 {[%emt 0:00:33]} 62. Rc5 {[%emt 0:00:11]} Kb7 {[%emt 0:00:48]} 63. Ke7 {[%emt 0:00:15]} Kxb6 {[%emt 0:02:22]} 64. Rc8 {[%emt 0:00:15]} Kb7 {[%emt 0:01:29]} 65. Rg8 {[%emt 0:00:52]} Kc7 {[%emt 0:00:05]} 66. Rxg6 {[%emt 0:00:07]} Rg3 {[%emt 0:00:16]} 67. Rg8 {[%emt 0:00:24]} Re3+ {[%emt 0:00:11]} 68. Kf7 {[%emt 0:00:10]} Kd7 {[%emt 0:00:06]} 69. Ra8 {[%emt 0:00:16]} Rf3+ {[%emt 0:02:42]} 70. Kg7 {[%emt 0:00:08]} Ke7 {[%emt 0:00:05]} 71. g6 {[%emt 0:00:04]} Rg3 {[%emt 0:00:14]} 72. Ra2 {[%emt 0:00:10]} Ke6 {[%emt 0:00:19]} 73. Re2+ {[%emt 0:00:07]} Kf5 {[%emt 0:00:05]} 74. Kf7 {[%emt 0:00:09]} 1-0

[Event "EYCC Open-U14 2019"]
[Site "Bratislava"]
[Date "2019.08.09"]
[Round "8.8"]
[White "Stukan, Martin"]
[Black "Pasztor, Balazs"]
[Result "0-1"]
[ECO "C96"]
[WhiteElo "2303"]
[BlackElo "2140"]
[Annotator "NA"]
[PlyCount "106"]
[EventDate "2019.08.02"]
[EventType "swiss"]
[EventCountry "SVK"]
[SourceTitle "playchess.com"]
[Source "ChessBase"]
[SourceQuality "1"]
[TimeControl "40/5400+30:1800+30"]

1. e4 {[%emt 0:00:00]} e5 {[%emt 0:00:00]} 2. Nf3 {[%emt 0:00:00]} Nc6 {[%emt 0:00:00]} 3. Bb5 {[%emt 0:00:00]} a6 {[%emt 0:00:13]} 4. Ba4 {[%emt 0:00:00]} Nf6 {[%emt 0:00:18]} 5. O-O {[%emt 0:00:00]} Be7 {[%emt 0:00:29]} 6. Re1 {[%emt 0:00:00]} b5 {[%emt 0:00:12]} 7. Bb3 {[%emt 0:00:00]} d6 {[%emt 0:00:18]} 8. c3 {[%emt 0:00:00]} O-O {[%emt 0:00:19]} 9. h3 {[%emt 0:00:00]} Na5 {[%emt 0:01:11]} 10. Bc2 {[%emt 0:00:00]} c5 {[%emt 0:00:09]} 11. d4 {[%emt 0:00:00]} Nd7 {[%emt 0:00:28]} 12. Nbd2 {[%emt 0:00:39]} exd4 {[%emt 0:00:28]} 13. cxd4 {[%emt 0:00:13]} Re8 {[%emt 0:00:37]} 14. Nf1 {[%emt 0:05:18]} Nc6 {[%emt 0:00:40]} 15. d5 {[%emt 0:03:30]} Nce5 {[%emt 0:00:57]} 16. N3h2 {[%emt 0:04:20]} Bh4 {[%emt 0:03:11]} 17. a4 {[%emt 0:03:37]} b4 {[%emt 0:10:30]} 18. Ne3 {[%emt 0:06:51]} c4 {[%emt 0:08:08]} 19. Nf5 {[%emt 0:16:30]} Nc5 {[%emt 0:06:56]} 20. Nxh4 {[%emt 0:00:52]} Qxh4 {[%emt 0:00:55]} 21. Nf3 {[%emt 0:00:23]} Nxf3+ {[%emt 0:12:22]} 22. Qxf3 {[%emt 0:00:19]} Bd7 {[%emt 0:13:57]} 23. Bf4 {[%emt 0:06:29]} Qf6 {[%emt 0:07:10]} 24. Qg3 {[%emt 0:03:14]} b3 {[%emt 0:07:45]} 25. Bxd6 {[%emt 0:02:17]} Qxb2 {[%emt 0:03:57]} 26. Bxc5 {[%emt 0:01:30]} bxc2 {[%emt 0:00:25]} 27. Qe3 {[%emt 0:15:33]} Qb3 {[%emt 0:03:27]} 28. a5 {[%emt 0:10:23]} Rab8 {[%emt 0:03:15]} 29. Bb6 {[%emt 0:01:51]} Rb7 {[%emt 0:02:57]} 30. Ra3 {[%emt 0:03:11]} Qxe3 {[%emt 0:01:54]} 31. Raxe3 {[%emt 0:00:06]} Ba4 {[%emt 0:01:33]} 32. g4 {[%emt 0:02:51]} f6 {[%emt 0:04:33]} 33. f3 {[%emt 0:01:30]} Kf7 {[%emt 0:01:32]} 34. Kf2 {[%emt 0:00:47]} h5 {[%emt 0:02:21]} 35. f4 {[%emt 0:08:11]} Rbe7 {[%emt 0:02:04]} 36. Kf3 {[%emt 0:01:27]} hxg4+ {[%emt 0:00:23]} 37. hxg4 {[%emt 0:00:06]} Rh8 {[%emt 0:01:00]} 38. Kg3 {[%emt 0:01:25]} Rhe8 {[%emt 0:00:25]} 39. Kf3 {[%emt 0:01:06]} Rh8 {[%emt 0:00:20]} 40. e5 {[%emt 0:00:00]} Rh3+ {[%emt 0:00:00]} 41. Ke4 {[%emt 0:02:16]} Rh2 {[%emt 0:15:36]} 42. e6+ {[%emt 0:00:10]} Kg8 {[%emt 0:02:24]} 43. Ra3 {[%emt 0:02:26]} Re2+ {[%emt 0:03:46]} 44. Re3 {[%emt 0:02:23]} Rd2 {[%emt 0:00:42]} 45. Rc3 {[%emt 0:14:54]} Bc6 {[%emt 0:04:34]} 46. Ke3 {[%emt 0:00:26]} Rh2 {[%emt 0:04:50]} 47. Rc1 {[%emt 0:06:32]} Bxd5 {[%emt 0:01:18]} 48. f5 {[%emt 0:00:06]} Rg2 {[%emt 0:01:52]} 49. Kd4 {[%emt 0:04:14]} Bc6 {[%emt 0:00:29]} 50. Kc5 {[%emt 0:00:21]} Bb5 {[%emt 0:00:05]} 51. R1xc2 {[%emt 0:01:28]} Rxg4 {[%emt 0:00:25]} 52. Rh2 {[%emt 0:01:10]} Rg5 {[%emt 0:00:54]} 53. Rch3 {[%emt 0:00:17]} Rxe6 {[%emt 0:00:17]} 0-1

[Event "EYCC Open-U14 2019"]
[Site "Bratislava"]
[Date "2019.08.09"]
[Round "8.9"]
[White "Trofimov, Pavel"]
[Black "Tsaruk, Maksim"]
[Result "1/2-1/2"]
[ECO "E50"]
[WhiteElo "2151"]
[BlackElo "2230"]
[Annotator "NA"]
[PlyCount "74"]
[EventDate "2019.08.02"]
[EventType "swiss"]
[EventCountry "SVK"]
[SourceTitle "playchess.com"]
[Source "ChessBase"]
[SourceQuality "1"]
[TimeControl "40/5400+30:1800+30"]

1. d4 {[%emt 0:00:00]} Nf6 {[%emt 0:00:00]} 2. c4 {[%emt 0:00:06]} e6 {[%emt 0:00:00]} 3. Nc3 {[%emt 0:00:56]} Bb4 {[%emt 0:00:00]} 4. e3 {[%emt 0:00:29]} O-O {[%emt 0:01:36]} 5. Nf3 {[%emt 0:00:08]} b6 {[%emt 0:18:11]} 6. Bd2 {[%emt 0:00:12]} Bb7 {[%emt 0:00:47]} 7. Bd3 {[%emt 0:00:12]} c5 {[%emt 0:24:22]} 8. a3 {[%emt 0:07:57]} Bxc3 {[%emt 0:00:06]} 9. Bxc3 {[%emt 0:00:36]} cxd4 {[%emt 0:07:01]} 10. Nxd4 {[%emt 0:07:08]} a6 {[%emt 0:07:48]} 11. O-O {[%emt 0:13:41]} d6 {[%emt 0:02:55]} 12. Re1 {[%emt 0:04:06]} Nbd7 {[%emt 0:00:05]} 13. Bf1 {[%emt 0:00:13]} Ne4 {[%emt 0:06:30]} 14. Rc1 {[%emt 0:02:46]} Qh4 {[%emt 0:03:12]} 15. Qc2 {[%emt 0:04:15]} Nxc3 {[%emt 0:00:23]} 16. Qxc3 {[%emt 0:00:07]} Rac8 {[%emt 0:02:18]} 17. Nb3 {[%emt 0:04:44]} Ne5 {[%emt 0:03:56]} 18. Qd4 {[%emt 0:03:49]} Ng4 {[%emt 0:03:28]} 19. Qf4 {[%emt 0:01:43]} e5 {[%emt 0:00:01]} 20. Qg3 {[%emt 0:00:13]} Qxg3 {[%emt 0:00:03]} 21. hxg3 {[%emt 0:00:11]} Nf6 {[%emt 0:00:04]} 22. Red1 {[%emt 0:02:04]} Rfd8 {[%emt 0:00:04]} 23. Be2 {[%emt 0:00:16]} Bc6 {[%emt 0:07:16]} 24. Nd2 {[%emt 0:02:49]} a5 {[%emt 0:07:21]} 25. Bf3 {[%emt 0:02:53]} Kf8 {[%emt 0:00:12]} 26. Kf1 {[%emt 0:01:49]} Ke7 {[%emt 0:00:21]} 27. Ke1 {[%emt 0:02:32]} Bd7 {[%emt 0:00:52]} 28. Ne4 {[%emt 0:02:51]} Nxe4 {[%emt 0:00:45]} 29. Bxe4 {[%emt 0:00:01]} Be6 {[%emt 0:01:47]} 30. Bd5 {[%emt 0:00:44]} f5 {[%emt 0:02:30]} 31. Bxe6 {[%emt 0:02:05]} Kxe6 {[%emt 0:00:01]} 32. Rd5 {[%emt 0:01:48]} Rc5 {[%emt 0:00:13]} 33. Rxc5 {[%emt 0:00:33]} bxc5 {[%emt 0:01:22]} 34. Kd2 {[%emt 0:00:36]} Rb8 {[%emt 0:00:52]} 35. Kc2 {[%emt 0:00:15]} h5 {[%emt 0:00:30]} 36. Rh1 {[%emt 0:00:51]} g6 {[%emt 0:00:04]} 37. Rd1 {[%emt 0:00:09]} e4 {[%emt 0:00:58]} 1/2-1/2